Workbook

Sheet tsp225
A1: Исходные данные | C1: кол-во | D1: =COUNT(D3:D286) -> 225 | G1: Путь коммивояжера
A2: № | B2: Наименование | C2: X | D2: Y | G2: № | H2: Наименование | I2: X | J2: Y | L2: Длина
A3: 1 | B3: Точка 1 | C3: 155.42 | D3: 150.65 | G3: 1 | H3: =IF($G3<>"",INDEX(B$3:B$227,$G3),NA()) -> Точка 1 | I3: =IF($G3<>"",INDEX(C$3:C$227,$G3),NA()) -> 155.42 | J3: =IF($G3<>"",INDEX(D$3:D$227,$G3),NA()) -> 150.65 | L3: =IF(AND(ISNUMBER(I3:J4)),ROUND(SQRT((I3-I4)^2+(J3-J4)^2),),"") -> 15
A4: 2 | B4: Точка 2 | C4: 375.92 | D4: 164.65 | G4: 200 | H4: Точка 200 | I4: 155.42 | J4: 136.15 | L4: =IF(AND(ISNUMBER(I4:J5)),ROUND(SQRT((I4-I5)^2+(J4-J5)^2),),"") -> 36
A5: 3 | B5: Точка 3 | C5: 183.92 | D5: 150.65 | G5: 198 | H5: Точка 198 | I5: 190.92 | J5: 136.15 | L5: =IF(AND(ISNUMBER(I5:J6)),ROUND(SQRT((I5-I6)^2+(J5-J6)^2),),"") -> 22
A6: 4 | B6: Точка 4 | C6: 205.42 | D6: 150.65 | G6: 197 | H6: Точка 197 | I6: 212.42 | J6: 136.15 | L6: =IF(AND(ISNUMBER(I6:J7)),ROUND(SQRT((I6-I7)^2+(J6-J7)^2),),"") -> 43
A7: 5 | B7: Точка 5 | C7: 205.42 | D7: 171.65 | G7: 195 | H7: Точка 195 | I7: 254.92 | J7: 136.15 | L7: =IF(AND(ISNUMBER(I7:J8)),ROUND(SQRT((I7-I8)^2+(J7-J8)^2),),"") -> 22
A8: 6 | B8: Точка 6 | C8: 226.42 | D8: 171.65 | G8: 194 | H8: Точка 194 | I8: 276.42 | J8: 136.15 | L8: =IF(AND(ISNUMBER(I8:J9)),ROUND(SQRT((I8-I9)^2+(J8-J9)^2),),"") -> 17 | N8: 2 | O8: m
A9: 7 | B9: Точка 7 | C9: 226.42 | D9: 186.15 | G9: 218 | H9: Точка 218 | I9: 293.42 | J9: 136.15 | L9: =IF(AND(ISNUMBER(I9:J10)),ROUND(SQRT((I9-I10)^2+(J9-J10)^2),),"") -> 9 | N9: 25 | O9: q
A10: 8 | B10: Точка 8 | C10: 226.42 | D10: 207.15 | G10: 193 | H10: Точка 193 | I10: 301.92 | J10: 136.15 | L10: =IF(AND(ISNUMBER(I10:J11)),ROUND(SQRT((I10-I11)^2+(J10-J11)^2),),"") -> 14 | N10: FALSE
A11: 9 | B11: Точка 9 | C11: 226.42 | D11: 235.65 | G11: 196 | H11: Точка 196 | I11: 315.92 | J11: 136.15 | L11: =IF(AND(ISNUMBER(I11:J12)),ROUND(SQRT((I11-I12)^2+(J11-J12)^2),),"") -> 11 | N11: Длина: | O11: =L228 -> 3919
A12: 10 | B12: Точка 10 | C12: 226.42 | D12: 264.15 | G12: 192 | H12: Точка 192 | I12: 326.42 | J12: 136.15 | L12: =IF(AND(ISNUMBER(I12:J13)),ROUND(SQRT((I12-I13)^2+(J12-J13)^2),),"") -> 14 | N12: Время: | O12: 13.21875
A13: 11 | B13: Точка 11 | C13: 226.42 | D13: 292.65 | G13: 191 | H13: Точка 191 | I13: 340.42 | J13: 136.15 | L13: =IF(AND(ISNUMBER(I13:J14)),ROUND(SQRT((I13-I14)^2+(J13-J14)^2),),"") -> 15
A14: 12 | B14: Точка 12 | C14: 226.42 | D14: 314.15 | G14: 205 | H14: Точка 205 | I14: 355.42 | J14: 136.15 | L14: =IF(AND(ISNUMBER(I14:J15)),ROUND(SQRT((I14-I15)^2+(J14-J15)^2),),"") -> 15 | N14: Оптим. | O14: 3916
A15: 13 | B15: Точка 13 | C15: 226.42 | D15: 335.65 | G15: 189 | H15: Точка 189 | I15: 370.42 | J15: 136.15 | L15: =IF(AND(ISNUMBER(I15:J16)),ROUND(SQRT((I15-I16)^2+(J15-J16)^2),),"") -> 17 | N15: Превыш. | O15: =O11/O14-1 -> 0.0007660878447
A16: 14 | B16: Точка 14 | C16: 205.42 | D16: 335.65 | G16: 27 | H16: Точка 27 | I16: 387.42 | J16: 136.15 | L16: =IF(AND(ISNUMBER(I16:J17)),ROUND(SQRT((I16-I17)^2+(J16-J17)^2),),"") -> 17
A17: 15 | B17: Точка 15 | C17: 190.92 | D17: 335.65 | G17: 188 | H17: Точка 188 | I17: 404.42 | J17: 136.15 | L17: =IF(AND(ISNUMBER(I17:J18)),ROUND(SQRT((I17-I18)^2+(J17-J18)^2),),"") -> 22
A18: 16 | B18: Точка 16 | C18: 190.92 | D18: 328.15 | G18: 187 | H18: Точка 187 | I18: 425.92 | J18: 136.15 | L18: =IF(AND(ISNUMBER(I18:J19)),ROUND(SQRT((I18-I19)^2+(J18-J19)^2),),"") -> 22
A19: 17 | B19: Точка 17 | C19: 176.92 | D19: 328.15 | G19: 186 | H19: Точка 186 | I19: 447.42 | J19: 136.15 | L19: =IF(AND(ISNUMBER(I19:J20)),ROUND(SQRT((I19-I20)^2+(J19-J20)^2),),"") -> 21
A20: 18 | B20: Точка 18 | C20: 176.92 | D20: 299.65 | G20: 185 | H20: Точка 185 | I20: 468.42 | J20: 136.15 | L20: =IF(AND(ISNUMBER(I20:J21)),ROUND(SQRT((I20-I21)^2+(J20-J21)^2),),"") -> 22
A21: 19 | B21: Точка 19 | C21: 155.42 | D21: 299.65 | G21: 184 | H21: Точка 184 | I21: 489.92 | J21: 136.15 | L21: =IF(AND(ISNUMBER(I21:J22)),ROUND(SQRT((I21-I22)^2+(J21-J22)^2),),"") -> 42
A22: 20 | B22: Точка 20 | C22: 155.42 | D22: 328.15 | G22: 182 | H22: Точка 182 | I22: 532.42 | J22: 136.15 | L22: =IF(AND(ISNUMBER(I22:J23)),ROUND(SQRT((I22-I23)^2+(J22-J23)^2),),"") -> 22
A23: 21 | B23: Точка 21 | C23: 155.42 | D23: 356.65 | G23: 181 | H23: Точка 181 | I23: 553.92 | J23: 136.15 | L23: =IF(AND(ISNUMBER(I23:J24)),ROUND(SQRT((I23-I24)^2+(J23-J24)^2),),"") -> 22
A24: 22 | B24: Точка 22 | C24: 183.92 | D24: 356.65 | G24: 180 | H24: Точка 180 | I24: 575.42 | J24: 136.15 | L24: =IF(AND(ISNUMBER(I24:J25)),ROUND(SQRT((I24-I25)^2+(J24-J25)^2),),"") -> 21
A25: 23 | B25: Точка 23 | C25: 219.42 | D25: 356.65 | G25: 179 | H25: Точка 179 | I25: 596.42 | J25: 136.15 | L25: =IF(AND(ISNUMBER(I25:J26)),ROUND(SQRT((I25-I26)^2+(J25-J26)^2),),"") -> 29 | Q25: m - метод оптимизации
A26: 24 | B26: Точка 24 | C26: 240.92 | D26: 356.65 | G26: 178 | H26: Точка 178 | I26: 624.92 | J26: 136.15 | L26: =IF(AND(ISNUMBER(I26:J27)),ROUND(SQRT((I26-I27)^2+(J26-J27)^2),),"") -> 15 | Q26: m = 0, построение маршрута "жадным" алгоритмом и использование 2-opt оптимизации
A27: 25 | B27: Точка 25 | C27: 269.42 | D27: 356.65 | G27: 177 | H27: Точка 177 | I27: 624.92 | J27: 150.65 | L27: =IF(AND(ISNUMBER(I27:J28)),ROUND(SQRT((I27-I28)^2+(J27-J28)^2),),"") -> 21 | Q27: m = 1, дополнительно "выпрямление" маршрута близко лежащих точек на коротких участках
A28: 26 | B28: Точка 26 | C28: 290.42 | D28: 356.65 | G28: 176 | H28: Точка 176 | I28: 603.92 | J28: 150.65 | L28: =IF(AND(ISNUMBER(I28:J29)),ROUND(SQRT((I28-I29)^2+(J28-J29)^2),),"") -> 36 | Q28: m = 2, дополнительно производится "выпрямление" близко лежащих точек на длинных участках
A29: 27 | B29: Точка 27 | C29: 387.42 | D29: 136.15 | G29: 174 | H29: Точка 174 | I29: 568.42 | J29: 150.65 | L29: =IF(AND(ISNUMBER(I29:J30)),ROUND(SQRT((I29-I30)^2+(J29-J30)^2),),"") -> 22 | Q29: m = 3, 2-opt и 3-opt оптимизация
A30: 28 | B30: Точка 28 | C30: 318.92 | D30: 356.65 | G30: 173 | H30: Точка 173 | I30: 546.92 | J30: 150.65 | L30: =IF(AND(ISNUMBER(I30:J31)),ROUND(SQRT((I30-I31)^2+(J30-J31)^2),),"") -> 21 | Q30: m = 4, совокупность всех методов оптимизации
A31: 29 | B31: Точка 29 | C31: 318.92 | D31: 335.65 | G31: 172 | H31: Точка 172 | I31: 546.92 | J31: 171.65 | L31: =IF(AND(ISNUMBER(I31:J32)),ROUND(SQRT((I31-I32)^2+(J31-J32)^2),),"") -> 22
A32: 30 | B32: Точка 30 | C32: 318.92 | D32: 328.15 | G32: 171 | H32: Точка 171 | I32: 525.42 | J32: 171.65 | L32: =IF(AND(ISNUMBER(I32:J33)),ROUND(SQRT((I32-I33)^2+(J32-J33)^2),),"") -> 22 | Q32: q - изменение количества разных маршрутов, с выбором наилучшего решения
A33: 31 | B33: Точка 31 | C33: 318.92 | D33: 299.65 | G33: 170 | H33: Точка 170 | I33: 525.42 | J33: 193.15 | L33: =IF(AND(ISNUMBER(I33:J34)),ROUND(SQRT((I33-I34)^2+(J33-J34)^2),),"") -> 22 | Q33: при q = 0 - только один маршрут
A34: 32 | B34: Точка 32 | C34: 297.92 | D34: 299.65 | G34: 169 | H34: Точка 169 | I34: 525.42 | J34: 214.65 | L34: =IF(AND(ISNUMBER(I34:J35)),ROUND(SQRT((I34-I35)^2+(J34-J35)^2),),"") -> 19 | Q34: при q > 0 количество маршрутов равно n / q
A35: 33 | B35: Точка 33 | C35: 290.42 | D35: 328.15 | G35: 168 | H35: Точка 168 | I35: 525.42 | J35: 233.15 | L35: =IF(AND(ISNUMBER(I35:J36)),ROUND(SQRT((I35-I36)^2+(J35-J36)^2),),"") -> 17
A36: 34 | B36: Точка 34 | C36: 290.42 | D36: 335.65 | G36: 212 | H36: Точка 212 | I36: 525.42 | J36: 250.15 | L36: =IF(AND(ISNUMBER(I36:J37)),ROUND(SQRT((I36-I37)^2+(J36-J37)^2),),"") -> 11
A37: 35 | B37: Точка 35 | C37: 297.92 | D37: 328.15 | G37: 214 | H37: Точка 214 | I37: 525.42 | J37: 261.15 | L37: =IF(AND(ISNUMBER(I37:J38)),ROUND(SQRT((I37-I38)^2+(J37-J38)^2),),"") -> 21
A38: 36 | B38: Точка 36 | C38: 254.92 | D38: 335.65 | G38: 167 | H38: Точка 167 | I38: 525.42 | J38: 281.65 | L38: =IF(AND(ISNUMBER(I38:J39)),ROUND(SQRT((I38-I39)^2+(J38-J39)^2),),"") -> 18
A39: 37 | B39: Точка 37 | C39: 254.92 | D39: 314.15 | G39: 166 | H39: Точка 166 | I39: 525.42 | J39: 299.65 | L39: =IF(AND(ISNUMBER(I39:J40)),ROUND(SQRT((I39-I40)^2+(J39-J40)^2),),"") -> 15
A40: 38 | B40: Точка 38 | C40: 254.92 | D40: 292.65 | G40: 165 | H40: Точка 165 | I40: 525.42 | J40: 314.15 | L40: =IF(AND(ISNUMBER(I40:J41)),ROUND(SQRT((I40-I41)^2+(J40-J41)^2),),"") -> 22
A41: 39 | B41: Точка 39 | C41: 254.92 | D41: 271.65 | G41: 164 | H41: Точка 164 | I41: 525.42 | J41: 335.65 | L41: =IF(AND(ISNUMBER(I41:J42)),ROUND(SQRT((I41-I42)^2+(J41-J42)^2),),"") -> 22
A42: 40 | B42: Точка 40 | C42: 254.92 | D42: 243.15 | G42: 213 | H42: Точка 213 | I42: 546.92 | J42: 335.65 | L42: =IF(AND(ISNUMBER(I42:J43)),ROUND(SQRT((I42-I43)^2+(J42-J43)^2),),"") -> 14
A43: 41 | B43: Точка 41 | C43: 254.92 | D43: 221.65 | G43: 158 | H43: Точка 158 | I43: 560.92 | J43: 335.65 | L43: =IF(AND(ISNUMBER(I43:J44)),ROUND(SQRT((I43-I44)^2+(J43-J44)^2),),"") -> 15
A44: 42 | B44: Точка 42 | C44: 254.92 | D44: 193.15 | G44: 163 | H44: Точка 163 | I44: 575.42 | J44: 335.65 | L44: =IF(AND(ISNUMBER(I44:J45)),ROUND(SQRT((I44-I45)^2+(J44-J45)^2),),"") -> 15
A45: 43 | B45: Точка 43 | C45: 254.92 | D45: 171.65 | G45: 162 | H45: Точка 162 | I45: 575.42 | J45: 321.15 | L45: =IF(AND(ISNUMBER(I45:J46)),ROUND(SQRT((I45-I46)^2+(J45-J46)^2),),"") -> 7
A46: 44 | B46: Точка 44 | C46: 276.42 | D46: 171.65 | G46: 161 | H46: Точка 161 | I46: 582.42 | J46: 321.15 | L46: =IF(AND(ISNUMBER(I46:J47)),ROUND(SQRT((I46-I47)^2+(J46-J47)^2),),"") -> 7
A47: 45 | B47: Точка 45 | C47: 296.42 | D47: 150.65 | G47: 160 | H47: Точка 160 | I47: 582.42 | J47: 314.15 | L47: =IF(AND(ISNUMBER(I47:J48)),ROUND(SQRT((I47-I48)^2+(J47-J48)^2),),"") -> 14
A48: 46 | B48: Точка 46 | C48: 276.42 | D48: 150.65 | G48: 159 | H48: Точка 159 | I48: 596.42 | J48: 314.15 | L48: =IF(AND(ISNUMBER(I48:J49)),ROUND(SQRT((I48-I49)^2+(J48-J49)^2),),"") -> 29
A49: 47 | B49: Точка 47 | C49: 375.92 | D49: 150.65 | G49: 157 | H49: Точка 157 | I49: 596.42 | J49: 285.65 | L49: =IF(AND(ISNUMBER(I49:J50)),ROUND(SQRT((I49-I50)^2+(J49-J50)^2),),"") -> 14
A50: 48 | B50: Точка 48 | C50: 308.92 | D50: 150.65 | G50: 156 | H50: Точка 156 | I50: 582.42 | J50: 285.65 | L50: =IF(AND(ISNUMBER(I50:J51)),ROUND(SQRT((I50-I51)^2+(J50-J51)^2),),"") -> 14
A51: 49 | B51: Точка 49 | C51: 354.92 | D51: 164.65 | G51: 155 | H51: Точка 155 | I51: 582.42 | J51: 271.65 | L51: =IF(AND(ISNUMBER(I51:J52)),ROUND(SQRT((I51-I52)^2+(J51-J52)^2),),"") -> 7
A52: 50 | B52: Точка 50 | C52: 338.42 | D52: 174.65 | G52: 154 | H52: Точка 154 | I52: 575.42 | J52: 271.65 | L52: =IF(AND(ISNUMBER(I52:J53)),ROUND(SQRT((I52-I53)^2+(J52-J53)^2),),"") -> 8
A53: 51 | B53: Точка 51 | C53: 354.92 | D53: 174.65 | G53: 153 | H53: Точка 153 | I53: 575.42 | J53: 264.15 | L53: =IF(AND(ISNUMBER(I53:J54)),ROUND(SQRT((I53-I54)^2+(J53-J54)^2),),"") -> 15
A54: 52 | B54: Точка 52 | C54: 338.42 | D54: 200.15 | G54: 152 | H54: Точка 152 | I54: 560.92 | J54: 264.15 | L54: =IF(AND(ISNUMBER(I54:J55)),ROUND(SQRT((I54-I55)^2+(J54-J55)^2),),"") -> 18
A55: 53 | B55: Точка 53 | C55: 338.42 | D55: 221.65 | G55: 151 | H55: Точка 151 | I55: 542.92 | J55: 264.15 | L55: =IF(AND(ISNUMBER(I55:J56)),ROUND(SQRT((I55-I56)^2+(J55-J56)^2),),"") -> 14
A56: 54 | B56: Точка 54 | C56: 354.92 | D56: 221.65 | G56: 150 | H56: Точка 150 | I56: 542.92 | J56: 250.15 | L56: =IF(AND(ISNUMBER(I56:J57)),ROUND(SQRT((I56-I57)^2+(J56-J57)^2),),"") -> 18
A57: 55 | B57: Точка 55 | C57: 354.92 | D57: 200.15 | G57: 149 | H57: Точка 149 | I57: 560.92 | J57: 250.15 | L57: =IF(AND(ISNUMBER(I57:J58)),ROUND(SQRT((I57-I58)^2+(J57-J58)^2),),"") -> 15
A58: 56 | B58: Точка 56 | C58: 361.92 | D58: 200.15 | G58: 148 | H58: Точка 148 | I58: 575.42 | J58: 250.15 | L58: =IF(AND(ISNUMBER(I58:J59)),ROUND(SQRT((I58-I59)^2+(J58-J59)^2),),"") -> 14
A59: 57 | B59: Точка 57 | C59: 361.92 | D59: 186.15 | G59: 147 | H59: Точка 147 | I59: 589.42 | J59: 250.15 | L59: =IF(AND(ISNUMBER(I59:J60)),ROUND(SQRT((I59-I60)^2+(J59-J60)^2),),"") -> 7
A60: 58 | B60: Точка 58 | C60: 383.42 | D60: 186.15 | G60: 146 | H60: Точка 146 | I60: 589.42 | J60: 257.15 | L60: =IF(AND(ISNUMBER(I60:J61)),ROUND(SQRT((I60-I61)^2+(J60-J61)^2),),"") -> 22
A61: 59 | B61: Точка 59 | C61: 383.42 | D61: 179.15 | G61: 145 | H61: Точка 145 | I61: 610.92 | J61: 257.15 | L61: =IF(AND(ISNUMBER(I61:J62)),ROUND(SQRT((I61-I62)^2+(J61-J62)^2),),"") -> 22
A62: 60 | B62: Точка 60 | C62: 404.42 | D62: 179.15 | G62: 144 | H62: Точка 144 | I62: 610.92 | J62: 278.65 | L62: =IF(AND(ISNUMBER(I62:J63)),ROUND(SQRT((I62-I63)^2+(J62-J63)^2),),"") -> 14
A63: 61 | B63: Точка 61 | C63: 404.42 | D63: 186.15 | G63: 143 | H63: Точка 143 | I63: 624.92 | J63: 278.65 | L63: =IF(AND(ISNUMBER(I63:J64)),ROUND(SQRT((I63-I64)^2+(J63-J64)^2),),"") -> 21
A64: 62 | B64: Точка 62 | C64: 418.92 | D64: 186.15 | G64: 201 | H64: Точка 201 | I64: 624.92 | J64: 299.65 | L64: =IF(AND(ISNUMBER(I64:J65)),ROUND(SQRT((I64-I65)^2+(J64-J65)^2),),"") -> 22
A65: 63 | B65: Точка 63 | C65: 418.92 | D65: 200.15 | G65: 142 | H65: Точка 142 | I65: 624.92 | J65: 321.15 | L65: =IF(AND(ISNUMBER(I65:J66)),ROUND(SQRT((I65-I66)^2+(J65-J66)^2),),"") -> 14
A66: 64 | B66: Точка 64 | C66: 432.92 | D66: 200.15 | G66: 141 | H66: Точка 141 | I66: 610.92 | J66: 321.15 | L66: =IF(AND(ISNUMBER(I66:J67)),ROUND(SQRT((I66-I67)^2+(J66-J67)^2),),"") -> 15
A67: 65 | B67: Точка 65 | C67: 432.92 | D67: 221.65 | G67: 140 | H67: =IF($G67<>"",INDEX(B$3:B$227,$G67),NA()) -> Точка 140 | I67: =IF($G67<>"",INDEX(C$3:C$227,$G67),NA()) -> 610.92 | J67: =IF($G67<>"",INDEX(D$3:D$227,$G67),NA()) -> 335.65 | L67: =IF(AND(ISNUMBER(I67:J68)),ROUND(SQRT((I67-I68)^2+(J67-J68)^2),),"") -> 7
A68: 66 | B68: Точка 66 | C68: 418.92 | D68: 221.65 | G68: 139 | H68: Точка 139 | I68: 610.92 | J68: 342.65 | L68: =IF(AND(ISNUMBER(I68:J69)),ROUND(SQRT((I68-I69)^2+(J68-J69)^2),),"") -> 7
A69: 67 | B69: Точка 67 | C69: 418.92 | D69: 235.65 | G69: 138 | H69: Точка 138 | I69: 603.92 | J69: 342.65 | L69: =IF(AND(ISNUMBER(I69:J70)),ROUND(SQRT((I69-I70)^2+(J69-J70)^2),),"") -> 15
A70: 68 | B70: Точка 68 | C70: 397.42 | D70: 235.65 | G70: 137 | H70: Точка 137 | I70: 589.42 | J70: 342.65 | L70: =IF(AND(ISNUMBER(I70:J71)),ROUND(SQRT((I70-I71)^2+(J70-J71)^2),),"") -> 14
A71: 69 | B71: Точка 69 | C71: 397.42 | D71: 243.15 | G71: 136 | H71: Точка 136 | I71: 589.42 | J71: 356.65 | L71: =IF(AND(ISNUMBER(I71:J72)),ROUND(SQRT((I71-I72)^2+(J71-J72)^2),),"") -> 14
A72: 70 | B72: Точка 70 | C72: 375.92 | D72: 243.15 | G72: 183 | H72: Точка 183 | I72: 575.42 | J72: 356.65 | L72: =IF(AND(ISNUMBER(I72:J73)),ROUND(SQRT((I72-I73)^2+(J72-J73)^2),),"") -> 15
A73: 71 | B73: Точка 71 | C73: 375.92 | D73: 257.15 | G73: 135 | H73: Точка 135 | I73: 560.92 | J73: 356.65 | L73: =IF(AND(ISNUMBER(I73:J74)),ROUND(SQRT((I73-I74)^2+(J73-J74)^2),),"") -> 21
A74: 72 | B74: Точка 72 | C74: 368.92 | D74: 257.15 | G74: 134 | H74: Точка 134 | I74: 539.92 | J74: 356.65 | L74: =IF(AND(ISNUMBER(I74:J75)),ROUND(SQRT((I74-I75)^2+(J74-J75)^2),),"") -> 15
A75: 73 | B75: Точка 73 | C75: 368.92 | D75: 264.15 | G75: 215 | H75: Точка 215 | I75: 525.42 | J75: 356.65 | L75: =IF(AND(ISNUMBER(I75:J76)),ROUND(SQRT((I75-I76)^2+(J75-J76)^2),),"") -> 28
A76: 74 | B76: Точка 74 | C76: 347.42 | D76: 264.15 | G76: 132 | H76: Точка 132 | I76: 496.92 | J76: 356.65 | L76: =IF(AND(ISNUMBER(I76:J77)),ROUND(SQRT((I76-I77)^2+(J76-J77)^2),),"") -> 27
A77: 75 | B77: Точка 75 | C77: 347.42 | D77: 278.65 | G77: 131 | H77: Точка 131 | I77: 470.42 | J77: 356.65 | L77: =IF(AND(ISNUMBER(I77:J78)),ROUND(SQRT((I77-I78)^2+(J77-J78)^2),),"") -> 11
A78: 76 | B78: Точка 76 | C78: 336.42 | D78: 278.65 | G78: 211 | H78: Точка 211 | I78: 470.42 | J78: 345.65 | L78: =IF(AND(ISNUMBER(I78:J79)),ROUND(SQRT((I78-I79)^2+(J78-J79)^2),),"") -> 10
A79: 77 | B79: Точка 77 | C79: 336.42 | D79: 328.15 | G79: 130 | H79: Точка 130 | I79: 470.42 | J79: 335.65 | L79: =IF(AND(ISNUMBER(I79:J80)),ROUND(SQRT((I79-I80)^2+(J79-J80)^2),),"") -> 13
A80: 78 | B80: Точка 78 | C80: 347.42 | D80: 328.15 | G80: 222 | H80: Точка 222 | I80: 482.92 | J80: 335.65 | L80: =IF(AND(ISNUMBER(I80:J81)),ROUND(SQRT((I80-I81)^2+(J80-J81)^2),),"") -> 14
A81: 79 | B81: Точка 79 | C81: 347.42 | D81: 342.65 | G81: 129 | H81: Точка 129 | I81: 496.92 | J81: 335.65 | L81: =IF(AND(ISNUMBER(I81:J82)),ROUND(SQRT((I81-I82)^2+(J81-J82)^2),),"") -> 19
A82: 80 | B82: Точка 80 | C82: 368.92 | D82: 342.65 | G82: 128 | H82: Точка 128 | I82: 496.92 | J82: 317.15 | L82: =IF(AND(ISNUMBER(I82:J83)),ROUND(SQRT((I82-I83)^2+(J82-J83)^2),),"") -> 25
A83: 81 | B83: Точка 81 | C83: 368.92 | D83: 353.65 | G83: 127 | H83: Точка 127 | I83: 496.92 | J83: 292.65 | L83: =IF(AND(ISNUMBER(I83:J84)),ROUND(SQRT((I83-I84)^2+(J83-J84)^2),),"") -> 21
A84: 82 | B84: Точка 82 | C84: 418.92 | D84: 353.65 | G84: 126 | H84: Точка 126 | I84: 496.92 | J84: 271.65 | L84: =IF(AND(ISNUMBER(I84:J85)),ROUND(SQRT((I84-I85)^2+(J84-J85)^2),),"") -> 29
A85: 83 | B85: Точка 83 | C85: 418.92 | D85: 342.65 | G85: 125 | H85: Точка 125 | I85: 496.92 | J85: 243.15 | L85: =IF(AND(ISNUMBER(I85:J86)),ROUND(SQRT((I85-I86)^2+(J85-J86)^2),),"") -> 29
A86: 84 | B86: Точка 84 | C86: 432.92 | D86: 342.65 | G86: 124 | H86: Точка 124 | I86: 496.92 | J86: 214.65 | L86: =IF(AND(ISNUMBER(I86:J87)),ROUND(SQRT((I86-I87)^2+(J86-J87)^2),),"") -> 22
A87: 85 | B87: Точка 85 | C87: 432.92 | D87: 356.65 | G87: 123 | H87: Точка 123 | I87: 496.92 | J87: 193.15 | L87: =IF(AND(ISNUMBER(I87:J88)),ROUND(SQRT((I87-I88)^2+(J87-J88)^2),),"") -> 22
A88: 86 | B88: Точка 86 | C88: 447.42 | D88: 356.65 | G88: 122 | H88: Точка 122 | I88: 496.92 | J88: 171.65 | L88: =IF(AND(ISNUMBER(I88:J89)),ROUND(SQRT((I88-I89)^2+(J88-J89)^2),),"") -> 21
A89: 87 | B89: Точка 87 | C89: 447.42 | D89: 321.15 | G89: 121 | H89: Точка 121 | I89: 475.92 | J89: 171.65 | L89: =IF(AND(ISNUMBER(I89:J90)),ROUND(SQRT((I89-I90)^2+(J89-J90)^2),),"") -> 11
A90: 88 | B90: Точка 88 | C90: 447.42 | D90: 292.65 | G90: 175 | H90: Точка 175 | I90: 475.92 | J90: 160.65 | L90: =IF(AND(ISNUMBER(I90:J91)),ROUND(SQRT((I90-I91)^2+(J90-J91)^2),),"") -> 10
A91: 89 | B91: Точка 89 | C91: 432.92 | D91: 292.65 | G91: 120 | H91: Точка 120 | I91: 475.92 | J91: 150.65 | L91: =IF(AND(ISNUMBER(I91:J92)),ROUND(SQRT((I91-I92)^2+(J91-J92)^2),),"") -> 22
A92: 90 | B92: Точка 90 | C92: 432.92 | D92: 314.15 | G92: 119 | H92: Точка 119 | I92: 454.42 | J92: 150.65 | L92: =IF(AND(ISNUMBER(I92:J93)),ROUND(SQRT((I92-I93)^2+(J92-J93)^2),),"") -> 15
A93: 91 | B93: Точка 91 | C93: 418.92 | D93: 314.15 | G93: 118 | H93: Точка 118 | I93: 439.92 | J93: 150.65 | L93: =IF(AND(ISNUMBER(I93:J94)),ROUND(SQRT((I93-I94)^2+(J93-J94)^2),),"") -> 20
A94: 92 | B94: Точка 92 | C94: 418.92 | D94: 321.15 | G94: 117 | H94: Точка 117 | I94: 419.92 | J94: 150.65 | L94: =IF(AND(ISNUMBER(I94:J95)),ROUND(SQRT((I94-I95)^2+(J94-J95)^2),),"") -> 17
A95: 93 | B95: Точка 93 | C95: 397.42 | D95: 321.15 | G95: 116 | H95: Точка 116 | I95: 419.92 | J95: 167.65 | L95: =IF(AND(ISNUMBER(I95:J96)),ROUND(SQRT((I95-I96)^2+(J95-J96)^2),),"") -> 10
A96: 94 | B96: Точка 94 | C96: 397.42 | D96: 333.65 | G96: 223 | H96: Точка 223 | I96: 429.92 | J96: 167.65 | L96: =IF(AND(ISNUMBER(I96:J97)),ROUND(SQRT((I96-I97)^2+(J96-J97)^2),),"") -> 10
A97: 95 | B97: Точка 95 | C97: 375.92 | D97: 333.65 | G97: 115 | H97: Точка 115 | I97: 439.92 | J97: 167.65 | L97: =IF(AND(ISNUMBER(I97:J98)),ROUND(SQRT((I97-I98)^2+(J97-J98)^2),),"") -> 12
A98: 96 | B98: Точка 96 | C98: 375.92 | D98: 321.15 | G98: 114 | H98: Точка 114 | I98: 439.92 | J98: 179.15 | L98: =IF(AND(ISNUMBER(I98:J99)),ROUND(SQRT((I98-I99)^2+(J98-J99)^2),),"") -> 8
A99: 97 | B99: Точка 97 | C99: 361.92 | D99: 321.15 | G99: 113 | H99: Точка 113 | I99: 447.42 | J99: 179.15 | L99: =IF(AND(ISNUMBER(I99:J100)),ROUND(SQRT((I99-I100)^2+(J99-J100)^2),),"") -> 14
A100: 98 | B100: Точка 98 | C100: 361.92 | D100: 299.65 | G100: 112 | H100: Точка 112 | I100: 447.42 | J100: 193.15 | L100: =IF(AND(ISNUMBER(I100:J101)),ROUND(SQRT((I100-I101)^2+(J100-J101)^2),),"") -> 14
A101: 99 | B101: Точка 99 | C101: 375.92 | D101: 299.65 | G101: 111 | H101: Точка 111 | I101: 461.42 | J101: 193.15 | L101: =IF(AND(ISNUMBER(I101:J102)),ROUND(SQRT((I101-I102)^2+(J101-J102)^2),),"") -> 22
A102: 100 | B102: Точка 100 | C102: 375.92 | D102: 285.65 | G102: 110 | H102: Точка 110 | I102: 461.42 | J102: 214.65 | L102: =IF(AND(ISNUMBER(I102:J103)),ROUND(SQRT((I102-I103)^2+(J102-J103)^2),),"") -> 29
A103: 101 | B103: Точка 101 | C103: 397.42 | D103: 285.65 | G103: 109 | H103: Точка 109 | I103: 461.42 | J103: 243.15 | L103: =IF(AND(ISNUMBER(I103:J104)),ROUND(SQRT((I103-I104)^2+(J103-J104)^2),),"") -> 7
A104: 102 | B104: Точка 102 | C104: 397.42 | D104: 271.65 | G104: 108 | H104: Точка 108 | I104: 454.42 | J104: 243.15 | L104: =IF(AND(ISNUMBER(I104:J105)),ROUND(SQRT((I104-I105)^2+(J104-J105)^2),),"") -> 7
A105: 103 | B105: Точка 103 | C105: 418.92 | D105: 271.65 | G105: 107 | H105: Точка 107 | I105: 454.42 | J105: 250.15 | L105: =IF(AND(ISNUMBER(I105:J106)),ROUND(SQRT((I105-I106)^2+(J105-J106)^2),),"") -> 15
A106: 104 | B106: Точка 104 | C106: 418.92 | D106: 264.15 | G106: 106 | H106: Точка 106 | I106: 439.92 | J106: 250.15 | L106: =IF(AND(ISNUMBER(I106:J107)),ROUND(SQRT((I106-I107)^2+(J106-J107)^2),),"") -> 14
A107: 105 | B107: Точка 105 | C107: 439.92 | D107: 264.15 | G107: 105 | H107: Точка 105 | I107: 439.92 | J107: 264.15 | L107: =IF(AND(ISNUMBER(I107:J108)),ROUND(SQRT((I107-I108)^2+(J107-J108)^2),),"") -> 14
A108: 106 | B108: Точка 106 | C108: 439.92 | D108: 250.15 | G108: 220 | H108: Точка 220 | I108: 425.92 | J108: 264.15 | L108: =IF(AND(ISNUMBER(I108:J109)),ROUND(SQRT((I108-I109)^2+(J108-J109)^2),),"") -> 7
A109: 107 | B109: Точка 107 | C109: 454.42 | D109: 250.15 | G109: 104 | H109: Точка 104 | I109: 418.92 | J109: 264.15 | L109: =IF(AND(ISNUMBER(I109:J110)),ROUND(SQRT((I109-I110)^2+(J109-J110)^2),),"") -> 8
A110: 108 | B110: Точка 108 | C110: 454.42 | D110: 243.15 | G110: 103 | H110: Точка 103 | I110: 418.92 | J110: 271.65 | L110: =IF(AND(ISNUMBER(I110:J111)),ROUND(SQRT((I110-I111)^2+(J110-J111)^2),),"") -> 22
A111: 109 | B111: Точка 109 | C111: 461.42 | D111: 243.15 | G111: 102 | H111: Точка 102 | I111: 397.42 | J111: 271.65 | L111: =IF(AND(ISNUMBER(I111:J112)),ROUND(SQRT((I111-I112)^2+(J111-J112)^2),),"") -> 14
A112: 110 | B112: Точка 110 | C112: 461.42 | D112: 214.65 | G112: 101 | H112: Точка 101 | I112: 397.42 | J112: 285.65 | L112: =IF(AND(ISNUMBER(I112:J113)),ROUND(SQRT((I112-I113)^2+(J112-J113)^2),),"") -> 22
A113: 111 | B113: Точка 111 | C113: 461.42 | D113: 193.15 | G113: 100 | H113: Точка 100 | I113: 375.92 | J113: 285.65 | L113: =IF(AND(ISNUMBER(I113:J114)),ROUND(SQRT((I113-I114)^2+(J113-J114)^2),),"") -> 14
A114: 112 | B114: Точка 112 | C114: 447.42 | D114: 193.15 | G114: 99 | H114: Точка 99 | I114: 375.92 | J114: 299.65 | L114: =IF(AND(ISNUMBER(I114:J115)),ROUND(SQRT((I114-I115)^2+(J114-J115)^2),),"") -> 14
A115: 113 | B115: Точка 113 | C115: 447.42 | D115: 179.15 | G115: 98 | H115: Точка 98 | I115: 361.92 | J115: 299.65 | L115: =IF(AND(ISNUMBER(I115:J116)),ROUND(SQRT((I115-I116)^2+(J115-J116)^2),),"") -> 22
A116: 114 | B116: Точка 114 | C116: 439.92 | D116: 179.15 | G116: 97 | H116: Точка 97 | I116: 361.92 | J116: 321.15 | L116: =IF(AND(ISNUMBER(I116:J117)),ROUND(SQRT((I116-I117)^2+(J116-J117)^2),),"") -> 14
A117: 115 | B117: Точка 115 | C117: 439.92 | D117: 167.65 | G117: 96 | H117: Точка 96 | I117: 375.92 | J117: 321.15 | L117: =IF(AND(ISNUMBER(I117:J118)),ROUND(SQRT((I117-I118)^2+(J117-J118)^2),),"") -> 13
A118: 116 | B118: Точка 116 | C118: 419.92 | D118: 167.65 | G118: 95 | H118: Точка 95 | I118: 375.92 | J118: 333.65 | L118: =IF(AND(ISNUMBER(I118:J119)),ROUND(SQRT((I118-I119)^2+(J118-J119)^2),),"") -> 8
A119: 117 | B119: Точка 117 | C119: 419.92 | D119: 150.65 | G119: 209 | H119: Точка 209 | I119: 383.42 | J119: 333.65 | L119: =IF(AND(ISNUMBER(I119:J120)),ROUND(SQRT((I119-I120)^2+(J119-J120)^2),),"") -> 14
A120: 118 | B120: Точка 118 | C120: 439.92 | D120: 150.65 | G120: 94 | H120: Точка 94 | I120: 397.42 | J120: 333.65 | L120: =IF(AND(ISNUMBER(I120:J121)),ROUND(SQRT((I120-I121)^2+(J120-J121)^2),),"") -> 13
A121: 119 | B121: Точка 119 | C121: 454.42 | D121: 150.65 | G121: 93 | H121: Точка 93 | I121: 397.42 | J121: 321.15 | L121: =IF(AND(ISNUMBER(I121:J122)),ROUND(SQRT((I121-I122)^2+(J121-J122)^2),),"") -> 22
A122: 120 | B122: Точка 120 | C122: 475.92 | D122: 150.65 | G122: 92 | H122: Точка 92 | I122: 418.92 | J122: 321.15 | L122: =IF(AND(ISNUMBER(I122:J123)),ROUND(SQRT((I122-I123)^2+(J122-J123)^2),),"") -> 7
A123: 121 | B123: Точка 121 | C123: 475.92 | D123: 171.65 | G123: 91 | H123: Точка 91 | I123: 418.92 | J123: 314.15 | L123: =IF(AND(ISNUMBER(I123:J124)),ROUND(SQRT((I123-I124)^2+(J123-J124)^2),),"") -> 14
A124: 122 | B124: Точка 122 | C124: 496.92 | D124: 171.65 | G124: 90 | H124: Точка 90 | I124: 432.92 | J124: 314.15 | L124: =IF(AND(ISNUMBER(I124:J125)),ROUND(SQRT((I124-I125)^2+(J124-J125)^2),),"") -> 22
A125: 123 | B125: Точка 123 | C125: 496.92 | D125: 193.15 | G125: 89 | H125: Точка 89 | I125: 432.92 | J125: 292.65 | L125: =IF(AND(ISNUMBER(I125:J126)),ROUND(SQRT((I125-I126)^2+(J125-J126)^2),),"") -> 15
A126: 124 | B126: Точка 124 | C126: 496.92 | D126: 214.65 | G126: 88 | H126: Точка 88 | I126: 447.42 | J126: 292.65 | L126: =IF(AND(ISNUMBER(I126:J127)),ROUND(SQRT((I126-I127)^2+(J126-J127)^2),),"") -> 29
A127: 125 | B127: Точка 125 | C127: 496.92 | D127: 243.15 | G127: 87 | H127: Точка 87 | I127: 447.42 | J127: 321.15 | L127: =IF(AND(ISNUMBER(I127:J128)),ROUND(SQRT((I127-I128)^2+(J127-J128)^2),),"") -> 15
A128: 126 | B128: Точка 126 | C128: 496.92 | D128: 271.65 | G128: 210 | H128: Точка 210 | I128: 447.42 | J128: 335.65 | L128: =IF(AND(ISNUMBER(I128:J129)),ROUND(SQRT((I128-I129)^2+(J128-J129)^2),),"") -> 21
A129: 127 | B129: Точка 127 | C129: 496.92 | D129: 292.65 | G129: 86 | H129: Точка 86 | I129: 447.42 | J129: 356.65 | L129: =IF(AND(ISNUMBER(I129:J130)),ROUND(SQRT((I129-I130)^2+(J129-J130)^2),),"") -> 15
A130: 128 | B130: Точка 128 | C130: 496.92 | D130: 317.15 | G130: 85 | H130: Точка 85 | I130: 432.92 | J130: 356.65 | L130: =IF(AND(ISNUMBER(I130:J131)),ROUND(SQRT((I130-I131)^2+(J130-J131)^2),),"") -> 14
A131: 129 | B131: Точка 129 | C131: 496.92 | D131: 335.65 | G131: 84 | H131: =IF($G131<>"",INDEX(B$3:B$227,$G131),NA()) -> Точка 84 | I131: =IF($G131<>"",INDEX(C$3:C$227,$G131),NA()) -> 432.92 | J131: =IF($G131<>"",INDEX(D$3:D$227,$G131),NA()) -> 342.65 | L131: =IF(AND(ISNUMBER(I131:J132)),ROUND(SQRT((I131-I132)^2+(J131-J132)^2),),"") -> 14
A132: 130 | B132: Точка 130 | C132: 470.42 | D132: 335.65 | G132: 83 | H132: Точка 83 | I132: 418.92 | J132: 342.65 | L132: =IF(AND(ISNUMBER(I132:J133)),ROUND(SQRT((I132-I133)^2+(J132-J133)^2),),"") -> 11
A133: 131 | B133: Точка 131 | C133: 470.42 | D133: 356.65 | G133: 82 | H133: Точка 82 | I133: 418.92 | J133: 353.65 | L133: =IF(AND(ISNUMBER(I133:J134)),ROUND(SQRT((I133-I134)^2+(J133-J134)^2),),"") -> 28
A134: 132 | B134: Точка 132 | C134: 496.92 | D134: 356.65 | G134: 221 | H134: Точка 221 | I134: 391.42 | J134: 353.65 | L134: =IF(AND(ISNUMBER(I134:J135)),ROUND(SQRT((I134-I135)^2+(J134-J135)^2),),"") -> 23
A135: 133 | B135: Точка 133 | C135: 347.42 | D135: 150.65 | G135: 81 | H135: Точка 81 | I135: 368.92 | J135: 353.65 | L135: =IF(AND(ISNUMBER(I135:J136)),ROUND(SQRT((I135-I136)^2+(J135-J136)^2),),"") -> 11
A136: 134 | B136: Точка 134 | C136: 539.92 | D136: 356.65 | G136: 80 | H136: Точка 80 | I136: 368.92 | J136: 342.65 | L136: =IF(AND(ISNUMBER(I136:J137)),ROUND(SQRT((I136-I137)^2+(J136-J137)^2),),"") -> 22
A137: 135 | B137: Точка 135 | C137: 560.92 | D137: 356.65 | G137: 79 | H137: Точка 79 | I137: 347.42 | J137: 342.65 | L137: =IF(AND(ISNUMBER(I137:J138)),ROUND(SQRT((I137-I138)^2+(J137-J138)^2),),"") -> 15
A138: 136 | B138: Точка 136 | C138: 589.42 | D138: 356.65 | G138: 78 | H138: Точка 78 | I138: 347.42 | J138: 328.15 | L138: =IF(AND(ISNUMBER(I138:J139)),ROUND(SQRT((I138-I139)^2+(J138-J139)^2),),"") -> 11
A139: 137 | B139: Точка 137 | C139: 589.42 | D139: 342.65 | G139: 77 | H139: Точка 77 | I139: 336.42 | J139: 328.15 | L139: =IF(AND(ISNUMBER(I139:J140)),ROUND(SQRT((I139-I140)^2+(J139-J140)^2),),"") -> 15
A140: 138 | B140: Точка 138 | C140: 603.92 | D140: 342.65 | G140: 217 | H140: Точка 217 | I140: 336.42 | J140: 313.15 | L140: =IF(AND(ISNUMBER(I140:J141)),ROUND(SQRT((I140-I141)^2+(J140-J141)^2),),"") -> 7
A141: 139 | B141: Точка 139 | C141: 610.92 | D141: 342.65 | G141: 219 | H141: Точка 219 | I141: 336.42 | J141: 306.15 | L141: =IF(AND(ISNUMBER(I141:J142)),ROUND(SQRT((I141-I142)^2+(J141-J142)^2),),"") -> 8
A142: 140 | B142: Точка 140 | C142: 610.92 | D142: 335.65 | G142: 216 | H142: Точка 216 | I142: 336.42 | J142: 298.65 | L142: =IF(AND(ISNUMBER(I142:J143)),ROUND(SQRT((I142-I143)^2+(J142-J143)^2),),"") -> 20
A143: 141 | B143: Точка 141 | C143: 610.92 | D143: 321.15 | G143: 76 | H143: Точка 76 | I143: 336.42 | J143: 278.65 | L143: =IF(AND(ISNUMBER(I143:J144)),ROUND(SQRT((I143-I144)^2+(J143-J144)^2),),"") -> 11
A144: 142 | B144: Точка 142 | C144: 624.92 | D144: 321.15 | G144: 75 | H144: Точка 75 | I144: 347.42 | J144: 278.65 | L144: =IF(AND(ISNUMBER(I144:J145)),ROUND(SQRT((I144-I145)^2+(J144-J145)^2),),"") -> 15
A145: 143 | B145: Точка 143 | C145: 624.92 | D145: 278.65 | G145: 74 | H145: Точка 74 | I145: 347.42 | J145: 264.15 | L145: =IF(AND(ISNUMBER(I145:J146)),ROUND(SQRT((I145-I146)^2+(J145-J146)^2),),"") -> 22
A146: 144 | B146: Точка 144 | C146: 610.92 | D146: 278.65 | G146: 73 | H146: Точка 73 | I146: 368.92 | J146: 264.15 | L146: =IF(AND(ISNUMBER(I146:J147)),ROUND(SQRT((I146-I147)^2+(J146-J147)^2),),"") -> 7
A147: 145 | B147: Точка 145 | C147: 610.92 | D147: 257.15 | G147: 72 | H147: Точка 72 | I147: 368.92 | J147: 257.15 | L147: =IF(AND(ISNUMBER(I147:J148)),ROUND(SQRT((I147-I148)^2+(J147-J148)^2),),"") -> 7
A148: 146 | B148: Точка 146 | C148: 589.42 | D148: 257.15 | G148: 71 | H148: Точка 71 | I148: 375.92 | J148: 257.15 | L148: =IF(AND(ISNUMBER(I148:J149)),ROUND(SQRT((I148-I149)^2+(J148-J149)^2),),"") -> 14
A149: 147 | B149: Точка 147 | C149: 589.42 | D149: 250.15 | G149: 70 | H149: Точка 70 | I149: 375.92 | J149: 243.15 | L149: =IF(AND(ISNUMBER(I149:J150)),ROUND(SQRT((I149-I150)^2+(J149-J150)^2),),"") -> 22
A150: 148 | B150: Точка 148 | C150: 575.42 | D150: 250.15 | G150: 69 | H150: Точка 69 | I150: 397.42 | J150: 243.15 | L150: =IF(AND(ISNUMBER(I150:J151)),ROUND(SQRT((I150-I151)^2+(J150-J151)^2),),"") -> 8
A151: 149 | B151: Точка 149 | C151: 560.92 | D151: 250.15 | G151: 68 | H151: Точка 68 | I151: 397.42 | J151: 235.65 | L151: =IF(AND(ISNUMBER(I151:J152)),ROUND(SQRT((I151-I152)^2+(J151-J152)^2),),"") -> 22
A152: 150 | B152: Точка 150 | C152: 542.92 | D152: 250.15 | G152: 67 | H152: Точка 67 | I152: 418.92 | J152: 235.65 | L152: =IF(AND(ISNUMBER(I152:J153)),ROUND(SQRT((I152-I153)^2+(J152-J153)^2),),"") -> 14
A153: 151 | B153: Точка 151 | C153: 542.92 | D153: 264.15 | G153: 66 | H153: Точка 66 | I153: 418.92 | J153: 221.65 | L153: =IF(AND(ISNUMBER(I153:J154)),ROUND(SQRT((I153-I154)^2+(J153-J154)^2),),"") -> 14
A154: 152 | B154: Точка 152 | C154: 560.92 | D154: 264.15 | G154: 65 | H154: Точка 65 | I154: 432.92 | J154: 221.65 | L154: =IF(AND(ISNUMBER(I154:J155)),ROUND(SQRT((I154-I155)^2+(J154-J155)^2),),"") -> 22
A155: 153 | B155: Точка 153 | C155: 575.42 | D155: 264.15 | G155: 64 | H155: Точка 64 | I155: 432.92 | J155: 200.15 | L155: =IF(AND(ISNUMBER(I155:J156)),ROUND(SQRT((I155-I156)^2+(J155-J156)^2),),"") -> 14
A156: 154 | B156: Точка 154 | C156: 575.42 | D156: 271.65 | G156: 63 | H156: Точка 63 | I156: 418.92 | J156: 200.15 | L156: =IF(AND(ISNUMBER(I156:J157)),ROUND(SQRT((I156-I157)^2+(J156-J157)^2),),"") -> 14
A157: 155 | B157: Точка 155 | C157: 582.42 | D157: 271.65 | G157: 62 | H157: Точка 62 | I157: 418.92 | J157: 186.15 | L157: =IF(AND(ISNUMBER(I157:J158)),ROUND(SQRT((I157-I158)^2+(J157-J158)^2),),"") -> 15
A158: 156 | B158: Точка 156 | C158: 582.42 | D158: 285.65 | G158: 61 | H158: Точка 61 | I158: 404.42 | J158: 186.15 | L158: =IF(AND(ISNUMBER(I158:J159)),ROUND(SQRT((I158-I159)^2+(J158-J159)^2),),"") -> 7
A159: 157 | B159: Точка 157 | C159: 596.42 | D159: 285.65 | G159: 60 | H159: Точка 60 | I159: 404.42 | J159: 179.15 | L159: =IF(AND(ISNUMBER(I159:J160)),ROUND(SQRT((I159-I160)^2+(J159-J160)^2),),"") -> 21
A160: 158 | B160: Точка 158 | C160: 560.92 | D160: 335.65 | G160: 59 | H160: Точка 59 | I160: 383.42 | J160: 179.15 | L160: =IF(AND(ISNUMBER(I160:J161)),ROUND(SQRT((I160-I161)^2+(J160-J161)^2),),"") -> 7
A161: 159 | B161: Точка 159 | C161: 596.42 | D161: 314.15 | G161: 58 | H161: Точка 58 | I161: 383.42 | J161: 186.15 | L161: =IF(AND(ISNUMBER(I161:J162)),ROUND(SQRT((I161-I162)^2+(J161-J162)^2),),"") -> 22
A162: 160 | B162: Точка 160 | C162: 582.42 | D162: 314.15 | G162: 57 | H162: Точка 57 | I162: 361.92 | J162: 186.15 | L162: =IF(AND(ISNUMBER(I162:J163)),ROUND(SQRT((I162-I163)^2+(J162-J163)^2),),"") -> 14
A163: 161 | B163: Точка 161 | C163: 582.42 | D163: 321.15 | G163: 56 | H163: Точка 56 | I163: 361.92 | J163: 200.15 | L163: =IF(AND(ISNUMBER(I163:J164)),ROUND(SQRT((I163-I164)^2+(J163-J164)^2),),"") -> 7
A164: 162 | B164: Точка 162 | C164: 575.42 | D164: 321.15 | G164: 55 | H164: Точка 55 | I164: 354.92 | J164: 200.15 | L164: =IF(AND(ISNUMBER(I164:J165)),ROUND(SQRT((I164-I165)^2+(J164-J165)^2),),"") -> 22
A165: 163 | B165: Точка 163 | C165: 575.42 | D165: 335.65 | G165: 54 | H165: Точка 54 | I165: 354.92 | J165: 221.65 | L165: =IF(AND(ISNUMBER(I165:J166)),ROUND(SQRT((I165-I166)^2+(J165-J166)^2),),"") -> 17
A166: 164 | B166: Точка 164 | C166: 525.42 | D166: 335.65 | G166: 53 | H166: Точка 53 | I166: 338.42 | J166: 221.65 | L166: =IF(AND(ISNUMBER(I166:J167)),ROUND(SQRT((I166-I167)^2+(J166-J167)^2),),"") -> 22
A167: 165 | B167: Точка 165 | C167: 525.42 | D167: 314.15 | G167: 52 | H167: Точка 52 | I167: 338.42 | J167: 200.15 | L167: =IF(AND(ISNUMBER(I167:J168)),ROUND(SQRT((I167-I168)^2+(J167-J168)^2),),"") -> 26
A168: 166 | B168: Точка 166 | C168: 525.42 | D168: 299.65 | G168: 50 | H168: Точка 50 | I168: 338.42 | J168: 174.65 | L168: =IF(AND(ISNUMBER(I168:J169)),ROUND(SQRT((I168-I169)^2+(J168-J169)^2),),"") -> 17
A169: 167 | B169: Точка 167 | C169: 525.42 | D169: 281.65 | G169: 51 | H169: Точка 51 | I169: 354.92 | J169: 174.65 | L169: =IF(AND(ISNUMBER(I169:J170)),ROUND(SQRT((I169-I170)^2+(J169-J170)^2),),"") -> 10
A170: 168 | B170: Точка 168 | C170: 525.42 | D170: 233.15 | G170: 49 | H170: Точка 49 | I170: 354.92 | J170: 164.65 | L170: =IF(AND(ISNUMBER(I170:J171)),ROUND(SQRT((I170-I171)^2+(J170-J171)^2),),"") -> 8
A171: 169 | B171: Точка 169 | C171: 525.42 | D171: 214.65 | G171: 207 | H171: Точка 207 | I171: 362.92 | J171: 164.65 | L171: =IF(AND(ISNUMBER(I171:J172)),ROUND(SQRT((I171-I172)^2+(J171-J172)^2),),"") -> 13
A172: 170 | B172: Точка 170 | C172: 525.42 | D172: 193.15 | G172: 2 | H172: Точка 2 | I172: 375.92 | J172: 164.65 | L172: =IF(AND(ISNUMBER(I172:J173)),ROUND(SQRT((I172-I173)^2+(J172-J173)^2),),"") -> 14
A173: 171 | B173: Точка 171 | C173: 525.42 | D173: 171.65 | G173: 47 | H173: Точка 47 | I173: 375.92 | J173: 150.65 | L173: =IF(AND(ISNUMBER(I173:J174)),ROUND(SQRT((I173-I174)^2+(J173-J174)^2),),"") -> 8
A174: 172 | B174: Точка 172 | C174: 546.92 | D174: 171.65 | G174: 225 | H174: Точка 225 | I174: 368.42 | J174: 150.65 | L174: =IF(AND(ISNUMBER(I174:J175)),ROUND(SQRT((I174-I175)^2+(J174-J175)^2),),"") -> 7
A175: 173 | B175: Точка 173 | C175: 546.92 | D175: 150.65 | G175: 190 | H175: Точка 190 | I175: 361.92 | J175: 150.65 | L175: =IF(AND(ISNUMBER(I175:J176)),ROUND(SQRT((I175-I176)^2+(J175-J176)^2),),"") -> 15
A176: 174 | B176: Точка 174 | C176: 568.42 | D176: 150.65 | G176: 133 | H176: Точка 133 | I176: 347.42 | J176: 150.65 | L176: =IF(AND(ISNUMBER(I176:J177)),ROUND(SQRT((I176-I177)^2+(J176-J177)^2),),"") -> 9
A177: 175 | B177: Точка 175 | C177: 475.92 | D177: 160.65 | G177: 199 | H177: Точка 199 | I177: 338.92 | J177: 150.65 | L177: =IF(AND(ISNUMBER(I177:J178)),ROUND(SQRT((I177-I178)^2+(J177-J178)^2),),"") -> 8
A178: 176 | B178: Точка 176 | C178: 603.92 | D178: 150.65 | G178: 224 | H178: Точка 224 | I178: 330.92 | J178: 150.65 | L178: =IF(AND(ISNUMBER(I178:J179)),ROUND(SQRT((I178-I179)^2+(J178-J179)^2),),"") -> 22
A179: 177 | B179: Точка 177 | C179: 624.92 | D179: 150.65 | G179: 48 | H179: Точка 48 | I179: 308.92 | J179: 150.65 | L179: =IF(AND(ISNUMBER(I179:J180)),ROUND(SQRT((I179-I180)^2+(J179-J180)^2),),"") -> 13
A180: 178 | B180: Точка 178 | C180: 624.92 | D180: 136.15 | G180: 45 | H180: Точка 45 | I180: 296.42 | J180: 150.65 | L180: =IF(AND(ISNUMBER(I180:J181)),ROUND(SQRT((I180-I181)^2+(J180-J181)^2),),"") -> 20
A181: 179 | B181: Точка 179 | C181: 596.42 | D181: 136.15 | G181: 46 | H181: Точка 46 | I181: 276.42 | J181: 150.65 | L181: =IF(AND(ISNUMBER(I181:J182)),ROUND(SQRT((I181-I182)^2+(J181-J182)^2),),"") -> 21
A182: 180 | B182: Точка 180 | C182: 575.42 | D182: 136.15 | G182: 44 | H182: Точка 44 | I182: 276.42 | J182: 171.65 | L182: =IF(AND(ISNUMBER(I182:J183)),ROUND(SQRT((I182-I183)^2+(J182-J183)^2),),"") -> 22
A183: 181 | B183: Точка 181 | C183: 553.92 | D183: 136.15 | G183: 43 | H183: Точка 43 | I183: 254.92 | J183: 171.65 | L183: =IF(AND(ISNUMBER(I183:J184)),ROUND(SQRT((I183-I184)^2+(J183-J184)^2),),"") -> 22
A184: 182 | B184: Точка 182 | C184: 532.42 | D184: 136.15 | G184: 42 | H184: Точка 42 | I184: 254.92 | J184: 193.15 | L184: =IF(AND(ISNUMBER(I184:J185)),ROUND(SQRT((I184-I185)^2+(J184-J185)^2),),"") -> 29
A185: 183 | B185: Точка 183 | C185: 575.42 | D185: 356.65 | G185: 41 | H185: Точка 41 | I185: 254.92 | J185: 221.65 | L185: =IF(AND(ISNUMBER(I185:J186)),ROUND(SQRT((I185-I186)^2+(J185-J186)^2),),"") -> 22
A186: 184 | B186: Точка 184 | C186: 489.92 | D186: 136.15 | G186: 40 | H186: Точка 40 | I186: 254.92 | J186: 243.15 | L186: =IF(AND(ISNUMBER(I186:J187)),ROUND(SQRT((I186-I187)^2+(J186-J187)^2),),"") -> 29
A187: 185 | B187: Точка 185 | C187: 468.42 | D187: 136.15 | G187: 39 | H187: Точка 39 | I187: 254.92 | J187: 271.65 | L187: =IF(AND(ISNUMBER(I187:J188)),ROUND(SQRT((I187-I188)^2+(J187-J188)^2),),"") -> 21
A188: 186 | B188: Точка 186 | C188: 447.42 | D188: 136.15 | G188: 38 | H188: Точка 38 | I188: 254.92 | J188: 292.65 | L188: =IF(AND(ISNUMBER(I188:J189)),ROUND(SQRT((I188-I189)^2+(J188-J189)^2),),"") -> 22
A189: 187 | B189: Точка 187 | C189: 425.92 | D189: 136.15 | G189: 37 | H189: Точка 37 | I189: 254.92 | J189: 314.15 | L189: =IF(AND(ISNUMBER(I189:J190)),ROUND(SQRT((I189-I190)^2+(J189-J190)^2),),"") -> 22
A190: 188 | B190: Точка 188 | C190: 404.42 | D190: 136.15 | G190: 36 | H190: Точка 36 | I190: 254.92 | J190: 335.65 | L190: =IF(AND(ISNUMBER(I190:J191)),ROUND(SQRT((I190-I191)^2+(J190-J191)^2),),"") -> 36
A191: 189 | B191: Точка 189 | C191: 370.42 | D191: 136.15 | G191: 34 | H191: Точка 34 | I191: 290.42 | J191: 335.65 | L191: =IF(AND(ISNUMBER(I191:J192)),ROUND(SQRT((I191-I192)^2+(J191-J192)^2),),"") -> 8
A192: 190 | B192: Точка 190 | C192: 361.92 | D192: 150.65 | G192: 33 | H192: Точка 33 | I192: 290.42 | J192: 328.15 | L192: =IF(AND(ISNUMBER(I192:J193)),ROUND(SQRT((I192-I193)^2+(J192-J193)^2),),"") -> 8
A193: 191 | B193: Точка 191 | C193: 340.42 | D193: 136.15 | G193: 35 | H193: Точка 35 | I193: 297.92 | J193: 328.15 | L193: =IF(AND(ISNUMBER(I193:J194)),ROUND(SQRT((I193-I194)^2+(J193-J194)^2),),"") -> 29
A194: 192 | B194: Точка 192 | C194: 326.42 | D194: 136.15 | G194: 32 | H194: Точка 32 | I194: 297.92 | J194: 299.65 | L194: =IF(AND(ISNUMBER(I194:J195)),ROUND(SQRT((I194-I195)^2+(J194-J195)^2),),"") -> 21
A195: 193 | B195: Точка 193 | C195: 301.92 | D195: 136.15 | G195: 31 | H195: =IF($G195<>"",INDEX(B$3:B$227,$G195),NA()) -> Точка 31 | I195: =IF($G195<>"",INDEX(C$3:C$227,$G195),NA()) -> 318.92 | J195: =IF($G195<>"",INDEX(D$3:D$227,$G195),NA()) -> 299.65 | L195: =IF(AND(ISNUMBER(I195:J196)),ROUND(SQRT((I195-I196)^2+(J195-J196)^2),),"") -> 15
A196: 194 | B196: Точка 194 | C196: 276.42 | D196: 136.15 | G196: 206 | H196: Точка 206 | I196: 318.92 | J196: 314.15 | L196: =IF(AND(ISNUMBER(I196:J197)),ROUND(SQRT((I196-I197)^2+(J196-J197)^2),),"") -> 8
A197: 195 | B197: Точка 195 | C197: 254.92 | D197: 136.15 | G197: 202 | H197: Точка 202 | I197: 318.92 | J197: 321.65 | L197: =IF(AND(ISNUMBER(I197:J198)),ROUND(SQRT((I197-I198)^2+(J197-J198)^2),),"") -> 7
A198: 196 | B198: Точка 196 | C198: 315.92 | D198: 136.15 | G198: 30 | H198: Точка 30 | I198: 318.92 | J198: 328.15 | L198: =IF(AND(ISNUMBER(I198:J199)),ROUND(SQRT((I198-I199)^2+(J198-J199)^2),),"") -> 8
A199: 197 | B199: Точка 197 | C199: 212.42 | D199: 136.15 | G199: 29 | H199: Точка 29 | I199: 318.92 | J199: 335.65 | L199: =IF(AND(ISNUMBER(I199:J200)),ROUND(SQRT((I199-I200)^2+(J199-J200)^2),),"") -> 21
A200: 198 | B200: Точка 198 | C200: 190.92 | D200: 136.15 | G200: 28 | H200: Точка 28 | I200: 318.92 | J200: 356.65 | L200: =IF(AND(ISNUMBER(I200:J201)),ROUND(SQRT((I200-I201)^2+(J200-J201)^2),),"") -> 7
... 28 more rows
